[Event "27th OIBM 2024"]
[Site "Gmund am Tegernsee"]
[Date "2024.10.28"]
[Round "3.14"]
[White "Colpe, Malte"]
[Black "Beisteiner, Joachim"]
[Result "1-0"]
[ECO "D35"]
[WhiteElo "2371"]
[BlackElo "2129"]
[Annotator "RC"]
[PlyCount "83"]
[EventDate "2024.09.16"]
[EventType "swiss"]
[EventCountry "GER"]
[SourceTitle "playchess.com"]
[Source "ChessBase"]
[SourceQuality "1"]
[TimeControl "40/5400+30:1800+30"]

1. d4 {[%emt 0:00:04]} d5 {[%emt 0:00:08]} 2. c4 {[%emt 0:00:05]} e6 {[%emt 0:00:10]} 3. Nc3 {[%emt 0:00:14]} Nf6 {[%emt 0:00:17]} 4. cxd5 {[%emt 0:00:24]} exd5 {[%emt 0:00:21]} 5. Bg5 {[%emt 0:01:04]} c6 {[%emt 0:00:23]} 6. e3 {[%emt 0:00:28]} h6 {[%emt 0:00:24]} 7. Bh4 {[%emt 0:00:09]} Be7 {[%emt 0:00:21]} 8. Bd3 {[%emt 0:00:47]} O-O {[%emt 0:00:33]} 9. Nge2 {[%emt 0:00:55]} Ne8 {[%emt 0:00:21]} 10. Bg3 {[%emt 0:03:43]} Nd6 {[%emt 0:00:31]} 11. Qc2 {[%emt 0:02:31]} Re8 {[%emt 0:00:41]} 12. O-O {[%emt 0:01:33]} Bf8 {[%emt 0:01:09]} 13. Rae1 {[%emt 0:05:20]} a5 {[%emt 0:04:23]} 14. Nf4 {[%emt 0:09:03]} Na6 {[%emt 0:02:34]} 15. a3 {[%emt 0:01:23]} b5 {[%emt 0:01:24]} 16. f3 {[%emt 0:05:54]} Nc4 {[%emt 0:06:32]} 17. Bf2 {[%emt 0:06:08]} Bd6 {[%emt 0:04:01]} 18. Qc1 {[%emt 0:07:25]} Bb7 {[%emt 0:06:43]} 19. Bxc4 {[%emt 0:03:59]} bxc4 {[%emt 0:09:03]} 20. e4 {[%emt 0:03:09]} Nc7 {[%emt 0:05:05]} 21. e5 {[%emt 0:02:12]} Bf8 {[%emt 0:00:42]} 22. Qc2 {[%emt 0:04:12]} Rb8 {[%emt 0:03:06]} 23. Kh1 {[%emt 0:05:29]} Bc8 {[%emt 0:03:51]} 24. Nh5 {[%emt 0:07:04]} Qg5 {[%emt 0:04:38]} 25. Ng3 {[%emt 0:06:09]} Qg6 {[%emt 0:01:32]} 26. Qc1 {[%emt 0:02:56]} Bf5 {[%emt 0:08:17]} 27. Nxf5 {[%emt 0:06:41]} Qxf5 {[%emt 0:00:06]} 28. Be3 {[%emt 0:03:18]} Rb3 {[%emt 0:02:19]} 29. g4 {[%emt 0:01:10]} Qg6 {[%emt 0:01:48]} 30. Rf2 {[%emt 0:04:28]} Kh7 {[%emt 0:04:09]} 31. f4 {[%emt 0:01:51]} f5 {[%emt 0:00:16]} 32. Rg1 {[%emt 0:00:58]} Be7 {[%emt 0:03:44]} 33. Qc2 {[%emt 0:01:39]} Rf8 {[%emt 0:00:22]} 34. Rfg2 {[%emt 0:03:27]} Ne8 {[%emt 0:03:59]} 35. h3 {[%emt 0:00:13]} Qe6 {[%emt 0:05:45]} 36. h4 {[%emt 0:01:15]} g6 {[%emt 0:05:12]} 37. h5 {[%emt 0:00:24]} g5 {[%emt 0:05:47]} 38. fxg5 {[%emt 0:00:25]} Bxg5 {[%emt 0:00:49]} 39. Bxg5 {[%emt 0:00:23]} hxg5 {[%emt 0:00:03]} 40. Rf2 {[%emt 0:01:02]} c5 {[%emt 0:06:53]} 41. gxf5 {[%emt 0:03:56]} Qh6 {[%emt 0:01:09]} 42. f6+ {[%emt 0:01:06]} 1-0

[Event "27th OIBM 2024"]
[Site "Gmund am Tegernsee"]
[Date "2024.10.28"]
[Round "3.15"]
[White "Georgescu, Lena"]
[Black "Dolzhykova, Kateryna"]
[Result "1/2-1/2"]
[ECO "B12"]
[WhiteElo "2236"]
[BlackElo "2345"]
[Annotator "RC"]
[PlyCount "91"]
[EventDate "2024.09.16"]
[EventType "swiss"]
[EventCountry "GER"]
[SourceTitle "playchess.com"]
[Source "ChessBase"]
[SourceQuality "1"]
[TimeControl "40/5400+30:1800+30"]

1. e4 {[%emt 0:00:03]} c6 {[%emt 0:00:07]} 2. d4 {[%emt 0:00:05]} d5 {[%emt 0:00:05]} 3. e5 {[%emt 0:00:02]} Bf5 {[%emt 0:00:05]} 4. h4 {[%emt 0:00:03]} h5 {[%emt 0:00:07]} 5. c4 {[%emt 0:00:04]} e6 {[%emt 0:02:06]} 6. Nc3 {[%emt 0:00:36]} Be7 {[%emt 0:08:22]} 7. Bd3 {[%emt 0:05:19]} Bxd3 {[%emt 0:09:19]} 8. Qxd3 {[%emt 0:00:13]} dxc4 {[%emt 0:00:36]} 9. Qxc4 {[%emt 0:01:01]} Nd7 {[%emt 0:00:14]} 10. Nf3 {[%emt 0:02:52]} Nh6 {[%emt 0:01:42]} 11. Bxh6 {[%emt 0:00:59]} Rxh6 {[%emt 0:00:07]} 12. O-O-O {[%emt 0:05:58]} Nb6 {[%emt 0:04:46]} 13. Qe2 {[%emt 0:03:43]} Nd5 {[%emt 0:03:43]} 14. Ne4 {[%emt 0:03:12]} Nf4 {[%emt 0:03:50]} 15. Qd2 {[%emt 0:33:10]} Nxg2 {[%emt 0:14:13]} 16. Nfg5 {[%emt 0:02:43]} Qd5 {[%emt 0:00:13]} 17. f3 {[%emt 0:10:46]} Nxh4 {[%emt 0:11:00]} 18. Rxh4 {[%emt 0:00:28]} Qxa2 {[%emt 0:00:02]} 19. Nd6+ {[%emt 0:06:55]} Bxd6 {[%emt 0:00:14]} 20. exd6 {[%emt 0:00:05]} Rf6 {[%emt 0:01:19]} 21. d7+ {[%emt 0:06:01]} Kxd7 {[%emt 0:00:35]} 22. Qb4 {[%emt 0:01:32]} Kc7 {[%emt 0:01:35]} 23. Qe7+ {[%emt 0:01:00]} Kb6 {[%emt 0:00:52]} 24. Qb4+ {[%emt 0:04:33]} Kc7 {[%emt 0:00:15]} 25. Qe7+ {[%emt 0:00:46]} Kb6 {[%emt 0:00:03]} 26. d5 {[%emt 0:02:51]} a5 {[%emt 0:00:06]} 27. dxc6 {[%emt 0:00:54]} bxc6 {[%emt 0:01:23]} 28. Rd7 {[%emt 0:03:54]} Rf5 {[%emt 0:00:54]} 29. Rb7+ {[%emt 0:01:14]} Ka6 {[%emt 0:00:00]} 30. Ne4 {[%emt 0:02:10]} g5 {[%emt 0:11:50]} 31. Nc3 {[%emt 0:01:13]} Qa1+ {[%emt 0:00:54]} 32. Kc2 {[%emt 0:00:01]} Rxf3 {[%emt 0:02:59]} 33. Rd4 {[%emt 0:01:01]} Rf2+ {[%emt 0:01:04]} 34. Rd2 {[%emt 0:00:22]} Rxd2+ {[%emt 0:01:50]} 35. Kxd2 {[%emt 0:00:01]} Qf1 {[%emt 0:02:24]} 36. Rb3 {[%emt 0:01:15]} Qf4+ {[%emt 0:03:48]} 37. Kc2 {[%emt 0:00:37]} Qf5+ {[%emt 0:02:10]} 38. Kc1 {[%emt 0:00:17]} Qf1+ {[%emt 0:00:32]} 39. Kc2 {[%emt 0:00:47]} Qf5+ {[%emt 0:00:10]} 40. Kc1 {[%emt 0:00:27]} Qf1+ {[%emt 0:00:04]} 41. Nd1 {[%emt 0:10:01]} Rb8 {[%emt 0:01:27]} 42. Rc3 {[%emt 0:07:20]} Qf4+ {[%emt 0:00:13]} 43. Kc2 {[%emt 0:06:32]} Qa4+ {[%emt 0:00:58]} 44. Kc1 {[%emt 0:01:50]} Qf4+ {[%emt 0:04:06]} 45. Kc2 {[%emt 0:01:18]} Qa4+ {[%emt 0:00:02]} 46. Kc1 {[%emt 0:07:16]} 1/2-1/2

[Event "27th OIBM 2024"]
[Site "Gmund am Tegernsee"]
[Date "2024.10.28"]
[Round "3.16"]
[White "Stopa, Jacek"]
[Black "Malinowsky, Levi"]
[Result "1/2-1/2"]
[ECO "D03"]
[WhiteElo "2326"]
[BlackElo "2117"]
[Annotator "RC"]
[PlyCount "91"]
[EventDate "2024.09.16"]
[EventType "swiss"]
[EventCountry "GER"]
[SourceTitle "playchess.com"]
[Source "ChessBase"]
[SourceQuality "1"]
[TimeControl "40/5400+30:1800+30"]

1. d4 {[%emt 0:00:02]} Nf6 {[%emt 0:00:07]} 2. Bg5 {[%emt 0:00:04]} d5 {[%emt 0:01:00]} 3. e3 {[%emt 0:00:06]} e6 {[%emt 0:05:06]} 4. Nd2 {[%emt 0:00:45]} c5 {[%emt 0:01:28]} 5. c3 {[%emt 0:00:50]} Nc6 {[%emt 0:01:39]} 6. Ngf3 {[%emt 0:00:18]} Be7 {[%emt 0:01:11]} 7. Bd3 {[%emt 0:01:36]} O-O {[%emt 0:00:44]} 8. O-O {[%emt 0:00:19]} b6 {[%emt 0:06:49]} 9. Ne5 {[%emt 0:03:04]} Bb7 {[%emt 0:06:51]} 10. Qf3 {[%emt 0:03:25]} Nxe5 {[%emt 0:04:40]} 11. dxe5 {[%emt 0:00:14]} Ne4 {[%emt 0:12:19]} 12. Bxe7 {[%emt 0:01:28]} Qxe7 {[%emt 0:00:07]} 13. Nxe4 {[%emt 0:00:32]} dxe4 {[%emt 0:00:11]} 14. Bxe4 {[%emt 0:00:05]} Bxe4 {[%emt 0:00:18]} 15. Qxe4 {[%emt 0:00:04]} Rad8 {[%emt 0:00:16]} 16. Rfd1 {[%emt 0:00:19]} Rd7 {[%emt 0:01:34]} 17. Kf1 {[%emt 0:04:22]} Rfd8 {[%emt 0:01:30]} 18. Ke1 {[%emt 0:01:22]} g6 {[%emt 0:03:25]} 19. a4 {[%emt 0:10:28]} Rd5 {[%emt 0:04:29]} 20. h4 {[%emt 0:06:53]} Qb7 {[%emt 0:04:25]} 21. Rxd5 {[%emt 0:06:22]} Rxd5 {[%emt 0:00:24]} 22. f3 {[%emt 0:08:33]} Qd7 {[%emt 0:04:39]} 23. Rc1 {[%emt 0:07:59]} Rd2 {[%emt 0:03:50]} 24. Rc2 {[%emt 0:04:37]} Rd1+ {[%emt 0:08:49]} 25. Kf2 {[%emt 0:00:09]} h5 {[%emt 0:03:26]} 26. Kg3 {[%emt 0:09:50]} Rh1 {[%emt 0:01:10]} 27. Rf2 {[%emt 0:03:22]} Qd1 {[%emt 0:01:31]} 28. Qc2 {[%emt 0:05:05]} Qd8 {[%emt 0:04:42]} 29. f4 {[%emt 0:04:00]} Qxh4+ {[%emt 0:01:15]} 30. Kf3 {[%emt 0:00:00]} Qg4+ {[%emt 0:00:41]} 31. Ke4 {[%emt 0:00:01]} Rd1 {[%emt 0:06:34]} 32. Rd2 {[%emt 0:03:37]} Re1 {[%emt 0:01:43]} 33. Kd3 {[%emt 0:05:23]} Qf5+ {[%emt 0:03:26]} 34. Kc4 {[%emt 0:00:07]} Qxc2 {[%emt 0:00:40]} 35. Rxc2 {[%emt 0:00:04]} Rxe3 {[%emt 0:00:09]} 36. Kb5 {[%emt 0:00:37]} Re4 {[%emt 0:00:57]} 37. b3 {[%emt 0:03:28]} Re1 {[%emt 0:00:50]} 38. Rb2 {[%emt 0:05:40]} Rd1 {[%emt 0:01:07]} 39. a5 {[%emt 0:00:46]} bxa5 {[%emt 0:00:59]} 40. Kxc5 {[%emt 0:00:04]} Kf8 {[%emt 0:01:06]} 41. c4 {[%emt 0:31:32]} Ra1 {[%emt 0:32:30]} 42. Kb5 {[%emt 0:01:54]} Ke7 {[%emt 0:00:32]} 43. Ka6 {[%emt 0:01:15]} a4 {[%emt 0:00:00]} 44. b4 {[%emt 0:00:00]} a3 {[%emt 0:00:00]} 45. Rc2 {[%emt 0:00:00]} Rb1 {[%emt 0:00:00]} 46. b5 {[%emt 0:00:00]} 1/2-1/2

[Event "27th OIBM 2024"]
[Site "Gmund am Tegernsee"]
[Date "2024.10.28"]
[Round "3.17"]
[White "Zheng, Harry Z"]
[Black "Gschiel, Alexander"]
[Result "1/2-1/2"]
[ECO "C84"]
[WhiteElo "2232"]
[BlackElo "2326"]
[Annotator "RC"]
[PlyCount "84"]
[EventDate "2024.09.16"]
[EventType "swiss"]
[EventCountry "GER"]
[SourceTitle "playchess.com"]
[Source "ChessBase"]
[SourceQuality "1"]
[TimeControl "40/5400+30:1800+30"]

1. e4 {[%emt 0:00:05]} e5 {[%emt 0:00:09]} 2. Nf3 {[%emt 0:00:12]} Nc6 {[%emt 0:00:10]} 3. Bb5 {[%emt 0:00:17]} a6 {[%emt 0:00:13]} 4. Ba4 {[%emt 0:00:12]} Nf6 {[%emt 0:00:18]} 5. d3 {[%emt 0:00:24]} b5 {[%emt 0:01:02]} 6. Bb3 {[%emt 0:00:10]} Be7 {[%emt 0:00:20]} 7. O-O {[%emt 0:01:08]} d6 {[%emt 0:00:23]} 8. a4 {[%emt 0:01:34]} Bd7 {[%emt 0:00:17]} 9. c3 {[%emt 0:01:11]} O-O {[%emt 0:00:25]} 10. Bc2 {[%emt 0:01:48]} Re8 {[%emt 0:02:11]} 11. Nbd2 {[%emt 0:01:12]} Bf8 {[%emt 0:01:18]} 12. h3 {[%emt 0:06:01]} h6 {[%emt 0:02:41]} 13. Re1 {[%emt 0:00:31]} d5 {[%emt 0:07:24]} 14. exd5 {[%emt 0:02:17]} Nxd5 {[%emt 0:00:08]} 15. Ne4 {[%emt 0:02:58]} f5 {[%emt 0:14:03]} 16. Bb3 {[%emt 0:06:52]} Be6 {[%emt 0:01:05]} 17. Ng3 {[%emt 0:00:44]} Qd6 {[%emt 0:13:16]} 18. Qe2 {[%emt 0:09:09]} Kh7 {[%emt 0:06:50]} 19. axb5 {[%emt 0:08:04]} axb5 {[%emt 0:01:49]} 20. Rxa8 {[%emt 0:00:13]} Rxa8 {[%emt 0:00:06]} 21. Bxd5 {[%emt 0:08:36]} Qxd5 {[%emt 0:05:06]} 22. Nxe5 {[%emt 0:01:42]} Nxe5 {[%emt 0:05:59]} 23. Qxe5 {[%emt 0:00:12]} Qxe5 {[%emt 0:00:07]} 24. Rxe5 {[%emt 0:00:12]} Ra1 {[%emt 0:00:09]} 25. Rxe6 {[%emt 0:06:14]} Rxc1+ {[%emt 0:00:09]} 26. Nf1 {[%emt 0:00:51]} Bd6 {[%emt 0:10:52]} 27. g3 {[%emt 0:04:35]} f4 {[%emt 0:03:44]} 28. gxf4 {[%emt 0:02:20]} Rc2 {[%emt 0:01:59]} 29. Ne3 {[%emt 0:06:57]} Rxb2 {[%emt 0:00:06]} 30. f5 {[%emt 0:00:32]} Rd2 {[%emt 0:01:14]} 31. d4 {[%emt 0:05:03]} Rd3 {[%emt 0:00:23]} 32. f6 {[%emt 0:03:47]} gxf6 {[%emt 0:01:36]} 33. Nd5 {[%emt 0:01:31]} f5 {[%emt 0:05:04]} 34. h4 {[%emt 0:07:12]} b4 {[%emt 0:02:28]} 35. cxb4 {[%emt 0:03:07]} Rxd4 {[%emt 0:00:19]} 36. Ne3 {[%emt 0:01:25]} Re4 {[%emt 0:05:54]} 37. Rxe4 {[%emt 0:01:10]} fxe4 {[%emt 0:00:01]} 38. b5 {[%emt 0:01:07]} Kg6 {[%emt 0:00:08]} 39. Kg2 {[%emt 0:00:31]} h5 {[%emt 0:02:51]} 40. f3 {[%emt 0:01:53]} exf3+ {[%emt 0:03:42]} 41. Kxf3 {[%emt 0:30:09]} Kf6 {[%emt 0:30:19]} 42. b6 {[%emt 0:02:12]} cxb6 {[%emt 0:01:16]} 1/2-1/2

[Event "27th OIBM 2024"]
[Site "Gmund am Tegernsee"]
[Date "2024.10.28"]
[Round "3.18"]
[White "Farokhi, Keyvan"]
[Black "Hund, Sarah"]
[Result "1-0"]
[ECO "A13"]
[WhiteElo "2320"]
[BlackElo "2008"]
[Annotator "RC"]
[PlyCount "51"]
[EventDate "2024.09.16"]
[EventType "swiss"]
[EventCountry "GER"]
[SourceTitle "playchess.com"]
[Source "ChessBase"]
[SourceQuality "1"]
[TimeControl "40/5400+30:1800+30"]

1. Nf3 {[%emt 0:00:14]} d5 {[%emt 0:00:10]} 2. e3 {[%emt 0:00:26]} Nf6 {[%emt 0:00:49]} 3. c4 {[%emt 0:00:12]} e6 {[%emt 0:00:52]} 4. b3 {[%emt 0:00:21]} Be7 {[%emt 0:01:12]} 5. Bb2 {[%emt 0:00:19]} O-O {[%emt 0:01:02]} 6. Nc3 {[%emt 0:00:12]} c5 {[%emt 0:01:45]} 7. cxd5 {[%emt 0:00:20]} Nxd5 {[%emt 0:01:22]} 8. Qc2 {[%emt 0:01:04]} Nc6 {[%emt 0:01:36]} 9. Be2 {[%emt 0:03:06]} b6 {[%emt 0:02:01]} 10. h4 {[%emt 0:01:18]} Bf6 {[%emt 0:08:33]} 11. g4 {[%emt 0:21:51]} Ncb4 {[%emt 0:08:42]} 12. Qb1 {[%emt 0:00:26]} g6 {[%emt 0:05:42]} 13. g5 {[%emt 0:08:56]} Bh8 {[%emt 0:01:30]} 14. Ne4 {[%emt 0:03:33]} f5 {[%emt 0:01:54]} 15. gxf6 {[%emt 0:12:22]} Nxf6 {[%emt 0:00:33]} 16. h5 {[%emt 0:02:35]} Nxe4 {[%emt 0:08:51]} 17. Bxh8 {[%emt 0:00:14]} Kxh8 {[%emt 0:01:45]} 18. Qxe4 {[%emt 0:06:05]} Qd5 {[%emt 0:01:42]} 19. Qg4 {[%emt 0:00:38]} Nc2+ {[%emt 0:06:10]} 20. Kd1 {[%emt 0:03:05]} e5 {[%emt 0:01:50]} 21. Qg3 {[%emt 0:00:47]} Ba6 {[%emt 0:09:17]} 22. hxg6 {[%emt 0:12:43]} Bxe2+ {[%emt 0:01:31]} 23. Kxe2 {[%emt 0:00:01]} Rxf3 {[%emt 0:03:34]} 24. Qh2 {[%emt 0:05:23]} Nd4+ {[%emt 0:04:48]} 25. Kd1 {[%emt 0:00:23]} Qb7 {[%emt 0:01:43]} 26. Qxe5+ {[%emt 0:00:13]} 1-0

[Event "27th OIBM 2024"]
[Site "Gmund am Tegernsee"]
[Date "2024.10.28"]
[Round "3.19"]
[White "Kozlovic, Jernej"]
[Black "Humbert, Arthur"]
[Result "0-1"]
[ECO "B30"]
[WhiteElo "2313"]
[BlackElo "1975"]
[Annotator "RC"]
[PlyCount "77"]
[EventDate "2024.09.16"]
[EventType "swiss"]
[EventCountry "GER"]
[SourceTitle "playchess.com"]
[Source "ChessBase"]
[SourceQuality "1"]
[TimeControl "40/5400+30:1800+30"]

1. e4 {[%emt 0:00:02]} c5 {[%emt 0:00:04]} 2. Nf3 {[%emt 0:00:09]} Nc6 {[%emt 0:00:06]} 3. Bb5 {[%emt 0:00:19]} g6 {[%emt 0:00:42]} 4. O-O {[%emt 0:00:13]} Bg7 {[%emt 0:00:09]} 5. Re1 {[%emt 0:00:24]} Nf6 {[%emt 0:01:02]} 6. e5 {[%emt 0:00:19]} Ng4 {[%emt 0:00:26]} 7. Bxc6 {[%emt 0:01:45]} dxc6 {[%emt 0:00:18]} 8. d3 {[%emt 0:01:20]} O-O {[%emt 0:00:25]} 9. Nc3 {[%emt 0:06:33]} Nh6 {[%emt 0:00:41]} 10. h3 {[%emt 0:00:22]} Nf5 {[%emt 0:00:59]} 11. Bf4 {[%emt 0:01:30]} Nd4 {[%emt 0:00:15]} 12. Nxd4 {[%emt 0:00:47]} cxd4 {[%emt 0:01:26]} 13. Ne4 {[%emt 0:00:24]} b6 {[%emt 0:01:34]} 14. Qd2 {[%emt 0:08:01]} a5 {[%emt 0:05:44]} 15. h4 {[%emt 0:05:43]} Qd5 {[%emt 0:08:02]} 16. Ng3 {[%emt 0:01:59]} c5 {[%emt 0:09:24]} 17. h5 {[%emt 0:05:25]} Bb7 {[%emt 0:00:44]} 18. f3 {[%emt 0:00:32]} Rae8 {[%emt 0:09:59]} 19. Kf2 {[%emt 0:06:49]} f6 {[%emt 0:07:13]} 20. hxg6 {[%emt 0:01:11]} fxe5 {[%emt 0:02:16]} 21. Bxe5 {[%emt 0:14:08]} Bxe5 {[%emt 0:00:15]} 22. Qh6 {[%emt 0:01:10]} Rxf3+ {[%emt 0:03:01]} 23. Ke2 {[%emt 0:00:01]} Rf2+ {[%emt 0:00:52]} 24. Kd1 {[%emt 0:00:01]} hxg6 {[%emt 0:02:04]} 25. Qxg6+ {[%emt 0:08:54]} Kf8 {[%emt 0:00:08]} 26. Ne4 {[%emt 0:01:49]} Qf7 {[%emt 0:00:53]} 27. Qxf7+ {[%emt 0:02:48]} Rxf7 {[%emt 0:00:14]} 28. Nxc5 {[%emt 0:00:25]} bxc5 {[%emt 0:00:27]} 29. Rxe5 {[%emt 0:00:02]} Rf1+ {[%emt 0:00:11]} 30. Re1 {[%emt 0:00:02]} Rxe1+ {[%emt 0:00:24]} 31. Kxe1 {[%emt 0:00:02]} Bxg2 {[%emt 0:00:07]} 32. c3 {[%emt 0:02:43]} Rb8 {[%emt 0:00:45]} 33. b3 {[%emt 0:02:31]} a4 {[%emt 0:00:21]} 34. Rb1 {[%emt 0:02:28]} axb3 {[%emt 0:00:15]} 35. axb3 {[%emt 0:00:33]} dxc3 {[%emt 0:02:12]} 36. Kd1 {[%emt 0:00:02]} c4 {[%emt 0:00:02]} 37. Kc2 {[%emt 0:00:40]} cxb3+ {[%emt 0:01:06]} 38. Kxc3 {[%emt 0:00:03]} Bd5 {[%emt 0:00:12]} 39. Kd4 {[%emt 0:27:51]} 0-1

[Event "27th OIBM 2024"]
[Site "Gmund am Tegernsee"]
[Date "2024.10.28"]
[Round "3.20"]
[White "Brychcy, Felix"]
[Black "Hrebenshchykova, Yelyzaveta"]
[Result "1/2-1/2"]
[ECO "A13"]
[WhiteElo "1999"]
[BlackElo "2311"]
[Annotator "RC"]
[PlyCount "117"]
[EventDate "2024.09.16"]
[EventType "swiss"]
[EventCountry "GER"]
[SourceTitle "playchess.com"]
[Source "ChessBase"]
[SourceQuality "1"]
[TimeControl "40/5400+30:1800+30"]

1. Nf3 {[%emt 0:00:02]} Nf6 {[%emt 0:01:21]} 2. c4 {[%emt 0:00:05]} e6 {[%emt 0:10:19]} 3. Nc3 {[%emt 0:02:44]} d5 {[%emt 0:03:46]} 4. e3 {[%emt 0:00:10]} Be7 {[%emt 0:05:03]} 5. b3 {[%emt 0:00:10]} O-O {[%emt 0:00:38]} 6. Bb2 {[%emt 0:00:46]} c5 {[%emt 0:09:43]} 7. cxd5 {[%emt 0:00:43]} Nxd5 {[%emt 0:14:27]} 8. Qc2 {[%emt 0:00:40]} Nc6 {[%emt 0:04:36]} 9. a3 {[%emt 0:01:29]} b6 {[%emt 0:02:04]} 10. h4 {[%emt 0:01:09]} h6 {[%emt 0:02:10]} 11. g4 {[%emt 0:21:04]} Nxc3 {[%emt 0:04:00]} 12. Bxc3 {[%emt 0:02:04]} Bf6 {[%emt 0:06:31]} 13. g5 {[%emt 0:22:05]} Bxc3 {[%emt 0:00:21]} 14. dxc3 {[%emt 0:01:39]} h5 {[%emt 0:01:33]} 15. Bd3 {[%emt 0:08:13]} Bb7 {[%emt 0:11:27]} 16. Bh7+ {[%emt 0:21:26]} Kh8 {[%emt 0:00:04]} 17. Be4 {[%emt 0:00:04]} g6 {[%emt 0:09:31]} 18. Rg1 {[%emt 0:01:33]} Qe7 {[%emt 0:03:25]} 19. c4 {[%emt 0:08:36]} Rfd8 {[%emt 0:03:28]} 20. Ke2 {[%emt 0:01:22]} Kh7 {[%emt 0:02:40]} 21. Rad1 {[%emt 0:01:09]} Qc7 {[%emt 0:00:18]} 22. Rxd8 {[%emt 0:01:19]} Rxd8 {[%emt 0:00:05]} 23. Rd1 {[%emt 0:00:19]} Rxd1 {[%emt 0:00:46]} 24. Kxd1 {[%emt 0:00:13]} Ne7 {[%emt 0:00:41]} 25. Ke2 {[%emt 0:01:08]} Nf5 {[%emt 0:00:38]} 26. Bxb7 {[%emt 0:01:04]} Qxb7 {[%emt 0:00:05]} 27. Qd3 {[%emt 0:01:11]} Qc7 {[%emt 0:00:34]} 28. Qe4 {[%emt 0:00:45]} Kg7 {[%emt 0:04:16]} 29. Qd3 {[%emt 0:00:48]} Kg8 {[%emt 0:00:00]} 30. Qc3 {[%emt 0:00:17]} Qd6 {[%emt 0:00:15]} 31. Qd3 {[%emt 0:00:20]} Qc7 {[%emt 0:00:24]} 32. Qe4 {[%emt 0:00:43]} Kg7 {[%emt 0:00:17]} 33. Qd3 {[%emt 0:00:07]} Kg8 {[%emt 0:00:04]} 34. Qe4 {[%emt 0:00:25]} Kg7 {[%emt 0:00:05]} 35. Qc2 {[%emt 0:00:23]} Kg8 {[%emt 0:01:09]} 36. Qc3 {[%emt 0:00:14]} Ne7 {[%emt 0:01:02]} 37. Qe5 {[%emt 0:00:38]} Qxe5 {[%emt 0:00:28]} 38. Nxe5 {[%emt 0:00:01]} Nf5 {[%emt 0:00:05]} 39. Nf3 {[%emt 0:00:20]} Kf8 {[%emt 0:00:57]} 40. Kd3 {[%emt 0:03:02]} Ke7 {[%emt 0:00:17]} 41. e4 {[%emt 0:08:18]} Nd6 {[%emt 0:00:29]} 42. Ne5 {[%emt 0:00:33]} a5 {[%emt 0:00:54]} 43. f3 {[%emt 0:09:53]} Kd8 {[%emt 0:02:56]} 44. Kc3 {[%emt 0:02:56]} Kc7 {[%emt 0:01:06]} 45. b4 {[%emt 0:01:09]} axb4+ {[%emt 0:03:03]} 46. axb4 {[%emt 0:00:04]} cxb4+ {[%emt 0:18:07]} 47. Kxb4 {[%emt 0:05:22]} Kd8 48. c5 {[%emt 0:00:30]} bxc5+ {[%emt 0:00:06]} 49. Kxc5 {[%emt 0:00:30]} Kc7 {[%emt 0:00:04]} 50. Kd4 {[%emt 0:02:27]} Nb5+ {[%emt 0:00:30]} 51. Kc4 {[%emt 0:00:56]} Nd6+ {[%emt 0:00:27]} 52. Kc5 {[%emt 0:00:16]} Nb7+ {[%emt 0:00:47]} 53. Kd4 {[%emt 0:00:04]} Nd6 {[%emt 0:01:30]} 54. Nd3 {[%emt 0:00:42]} Kd7 {[%emt 0:00:34]} 55. Ne5+ {[%emt 0:01:19]} Kc7 {[%emt 0:00:18]} 56. Nc4 {[%emt 0:00:49]} Nxc4 {[%emt 0:03:54]} 57. Kxc4 {[%emt 0:00:01]} Kd6 {[%emt 0:00:04]} 58. f4 {[%emt 0:00:50]} Kc6 {[%emt 0:00:05]} 59. e5 {[%emt 0:02:51]} 1/2-1/2

[Event "27th OIBM 2024"]
[Site "Gmund am Tegernsee"]
[Date "2024.10.28"]
[Round "3.21"]
[White "Spence, Isaac"]
[Black "Edelmann, Oliver"]
[Result "1-0"]
[ECO "B12"]
[WhiteElo "2077"]
[BlackElo "1951"]
[Annotator "RC"]
[PlyCount "56"]
[EventDate "2024.09.16"]
[EventType "swiss"]
[EventCountry "GER"]
[SourceTitle "playchess.com"]
[Source "ChessBase"]
[SourceQuality "1"]
[TimeControl "40/5400+30:1800+30"]

1. e4 {[%emt 0:00:03]} c6 {[%emt 0:14:08]} 2. d4 {[%emt 0:00:08]} d5 {[%emt 0:00:09]} 3. e5 {[%emt 0:00:04]} Bf5 {[%emt 0:00:11]} 4. Nf3 {[%emt 0:00:06]} e6 {[%emt 0:00:11]} 5. Be2 {[%emt 0:00:09]} Nd7 {[%emt 0:00:51]} 6. O-O {[%emt 0:00:15]} Ne7 {[%emt 0:00:07]} 7. Nbd2 {[%emt 0:00:07]} c5 {[%emt 0:01:05]} 8. c4 {[%emt 0:01:10]} Nc6 {[%emt 0:02:38]} 9. cxd5 {[%emt 0:01:13]} exd5 {[%emt 0:00:09]} 10. dxc5 {[%emt 0:00:22]} Nxc5 {[%emt 0:04:17]} 11. Nb3 {[%emt 0:00:20]} Ne6 {[%emt 0:01:13]} 12. Be3 {[%emt 0:06:26]} Be7 {[%emt 0:01:13]} 13. Nbd4 {[%emt 1:26:37]} Bg6 {[%emt 0:00:00]} 14. Bb5 {[%emt 0:00:30]} Rc8 {[%emt 1:11:18]} 15. Rc1 {[%emt 0:00:30]} Qd7 {[%emt 0:00:30]} 16. Nxe6 {[%emt 0:00:00]} fxe6 {[%emt 0:00:00]} 17. Nd4 {[%emt 0:00:00]} O-O {[%emt 0:00:00]} 18. Qa4 {[%emt 0:00:00]} Be8 {[%emt 0:00:00]} 19. Rc3 {[%emt 0:00:00]} a6 {[%emt 0:00:00]} 20. Nxc6 {[%emt 0:00:00]} bxc6 {[%emt 0:00:00]} 21. Qxa6 {[%emt 0:00:00]} Qc7 {[%emt 0:00:00]} 22. Rfc1 {[%emt 0:00:00]} Qxe5 {[%emt 0:00:00]} 23. Qxc8 {[%emt 0:00:00]} cxb5 {[%emt 0:00:00]} 24. Bc5 {[%emt 0:00:00]} Bh5 {[%emt 0:00:00]} 25. Qd7 {[%emt 0:00:00]} Bg5 {[%emt 0:00:00]} 26. Bxf8 {[%emt 0:00:00]} Bxc1 {[%emt 0:00:00]} 27. Rxc1 {[%emt 0:00:00]} Qxb2 {[%emt 0:00:00]} 28. Qc8 {[%emt 0:06:30]} Be8 {[%emt 0:06:30]} 1-0